Cogmind - Beta 13 @@@ ROGUE MODE // 2024.04.24 @ 00:10:01 Player: CONM Result: Destroyed by as-76352 with Assembled Maul Performance ------------- Evolutions (0) 0 Regions Visited (2) 400 Robots Destroyed (15) 75 Value Destroyed (452) 452 Prototype IDs (0) 0 Alien Tech Used (0) 0 Bonus (14) 14 TOTAL SCORE: 941 Bonus ------- Follower Combat Kills 14 Cogmind --------- Core Integrity 0/250 Matter 290/300 Energy 59/100 System Corruption 5% Temperature Cool (0) Movement Hovering (60) Location -10/Mines Parts ------- > --- POWER (1) -------- (None) > --- PROPULSION (2) --- Hover Unit > --- UTILITY (2) ------ (None) > --- WEAPON (2) ------- (None) > --- INVENTORY (5) ---- Aluminum Leg Aluminum Leg Structural Scanner Structural Scanner Light Assault Rifle Peak State ------------ > --- POWER ------------ Ion Engine > --- PROPULSION ------- Light Treads Light Treads > --- UTILITY ---------- Small Storage Unit Targeting Computer > --- WEAPON ----------- Assault Rifle Assault Rifle > --- INVENTORY -------- Aluminum Leg Light Assault Rifle [Rating: 7] Favorites ----------- Power Ion Engine Engine Ion Engine Propulsion Light Treads Treads Light Treads Leg Aluminum Leg Hover Unit Hover Unit Utility Targeting Computer Storage Small Storage Unit Processor Targeting Computer Weapon Assault Rifle Energy Cannon Beam Cannon Ballistic Gun Assault Rifle Build | -11 -10 -10 ------- Run | Yrd Mat Min Slots Evolved . | . . . Power . | . . . Propulsion . | . . . Utility . | . . . Weapon . | . . . Parts Attached 14 | 6 7 1 Power 1 | 1 . . Engine 1 | 1 . . Core . | . . . Reactor . | . . . Propulsion 6 | 2 3 1 Treads 3 | 2 1 . Leg 2 | . 2 . Wheel . | . . . Hover 1 | . . 1 Flight . | . . . Utility 3 | 1 2 . Device . | . . . Storage 2 | 1 1 . Processor 1 | . 1 . Hackware . | . . . Protection . | . . . Artifact . | . . . Weapon 4 | 2 2 . Energy Gun . | . . . Energy Cannon 1 | . 1 . Ballistic Gun 3 | 2 1 . Ballistic Cannon . | . . . Launcher . | . . . Special Weapon . | . . . Impact Weapon . | . . . Slashing Weapon . | . . . Piercing Weapon . | . . . Special Melee Weapon . | . . . Unidentified Prototypes . | . . . Parts Lost 7 | . 3 4 Power 1 | . . 1 Propulsion 3 | . 2 1 Utility 1 | . . 1 Weapon 2 | . 1 1 Highest Loss Streak 2 | . 2 2 To Critical Strikes . | . . . Average Slot Usage (%) 87 | . 94 74 Engine 9 | . 14 2 Treads 13 | . 20 . Leg 13 | . 5 27 Storage 14 | . 14 14 Processor 11 | . 10 13 Energy Cannon 7 | . 2 14 Ballistic Gun 16 | . 24 2 Naked Turns . | . . . Heaviest Build 30 | 13 30 30 Greatest Support 40 | 40 40 20 Greatest Overweight (x) 2 | 1 1 2 Average Overweight (x) . | . . 1 Largest Inventory Capacity 15 | 8 15 15 Average Capacity 10 | 6 8 15 Most Carried 7 | 5 7 7 Average Carried 4 | 1 4 6 Final Capacity 15 | 8 15 5 Final Carried 6 | 1 6 5 Class Distribution -------------------- 100% | Mutant Dominant Class ---------------- Mutant | -10/Materials Mutant | -10/Mines Resources | -11 -10 -10 ----------- Run | Yrd Mat Min Matter Collected 528 | 276 242 10 Remotely . | . . . Salvage Created 578 | 83 495 . Parts 31 | 3 27 1 Haulers Intercepted . | . . . Recyclers Shooed 1 | . 1 . Parts Field Recycled . | . . . Retrieved Matter . | . . . Parts Self-Destructed . | . . . Prevented . | . . . Kills | -11 -10 -10 ------- Run | Yrd Mat Min Combat Hostiles Destroyed 12 | . 11 1 Guns 11 | . 11 . Cannons 1 | . . 1 Classes Destroyed 5 | 2 2 1 Tunneler 1 | 1 . . Recycler 1 | 1 . . Watcher 1 | . 1 . Swarmer 1 | . . 1 Grunt 11 | . 11 . Best Kill Streak 3 | 1 3 1 Combat Bots Only 3 | . 3 1 Max Kills in Single Turn 1 | 1 1 1 Gunslinging . | . . . Exploded . | . . . Melee . | . . . Uniques/NPCs Destroyed . | . . . Combat | -11 -10 -10 -------- Run | Yrd Mat Min Hostile Shots Fired 113 | . 74 39 Missed 23 | . 14 9 Damage Taken 1200 | . 744 456 Core 261 | . 127 134 Absorbed by Shields . | . . . Core Remaining (%) 100 | 100 . . Volleys Fired 42 | 4 37 1 Largest 2 | 2 2 1 Hottest 60 | 40 40 60 Shots Fired 77 | 8 68 1 Gun 76 | 8 68 . Cannon 1 | . . 1 Launcher . | . . . Special . | . . . Kinetic 76 | 8 68 . Thermal 1 | . . 1 Explosive . | . . . Electromagnetic . | . . . Robot Hit Streak 13 | 4 13 7 Robot Miss Streak 2 | 1 2 . Penetration Max . | . . . Secondary Targets . | . . . Shots Hit Robots 54 | 6 47 1 Core Hits 28 | 3 24 1 Critical Kills . | . . . Critical Parts Destroyed . | . . . Critical Strikes . | . . . Melee Attacks . | . . . Impact . | . . . Slashing . | . . . Piercing . | . . . Sneak Attacks . | . . . Combat Hostiles . | . . . Follow-up Attacks . | . . . Damage Inflicted 706 | 62 616 28 Guns 676 | 62 614 . Cannons 17 | . . 17 Explosions . | . . . Melee . | . . . Ramming 13 | . 2 11 Kinetic 676 | 62 614 . Thermal 17 | . . 17 Explosive . | . . . Electromagnetic . | . . . Impact . | . . . Slashing . | . . . Piercing . | . . . Highest Corruption 5 | . . 5 Average Corruption 3 | . . 3 Corruption Purged . | . . . Corruption Blocked . | . . . Overload Shots . | . . . Overflow Damage . | . . . Projectiles . | . . . Explosions . | . . . Melee . | . . . Knockbacks . | . . . Impact . | . . . Kinetic . | . . . Secondary . | . . . Self-Inflicted Damage . | . . . Shots . | . . . Rammed 2 | . 2 . Targets Rammed 9 | . 2 7 Kicked 7 | . . 7 Crushed . | . . . Highest Temperature 53 | . 53 10 Average Temperature 13 | . 14 5 Received Heat Transfer 501 | . 474 27 Siege Activations . | . . . Robots Corrupted . | . . . Combat Hostiles . | . . . Parts Fried . | . . . Impact Corruptions . | . . . Robots Melted . | . . . Combat Hostiles . | . . . Parts Melted . | . . . Heat Transferred 37 | . . 37 Parts Sabotaged . | . . . Parts Stolen . | . . . Parts Stripped . | . . . Power Chain Reactions . | . . . Alert | -11 -10 -10 ------- Run | Yrd Mat Min Peak Influence 258 | 10 258 100 Initial 42 | . 6 42 Average 91 | 5 112 85 Maximum Alert Level 1 | . 1 . Low Security (%) 93 | 100 88 100 Level 1 6 | . 11 . Level 2 . | . . . Level 3 . | . . . Level 4 . | . . . Level 5 . | . . . High Security . | . . . Max Security . | . . . Squads Dispatched 3 | . 3 . Investigation 2 | . 2 . Extermination . | . . . Reinforcement 1 | . 1 . Assault . | . . . Garrison . | . . . Intercept . | . . . Searches Triggered . | . . . Construction Impeded . | . . . Haulers Reinforced . | . . . Active Scanning Responses . | . . . Cargo Convoy Interrupts . | . . . Stealth | -11 -10 -10 --------- Run | Yrd Mat Min Distress Signals . | . . . Communications Jammed . | . . . Distress Signals . | . . . Times Spotted 29 | . 16 13 Peak Tracking Total 10 | . 5 10 Tactical Retreats 1 | . . 1 Traps | -11 -10 -10 ------- Run | Yrd Mat Min Traps Triggered 2 | . 2 . Indirectly . | . . . Trap Hack Attempts . | . . . Triggered . | . . . Disarmed . | . . . Reprogrammed . | . . . Reused . | . . . Traps Extracted . | . . . Installed . | . . . Triggered . | . . . Machines | -11 -10 -10 ---------- Run | Yrd Mat Min Machines Disabled . | . . . Max in Single Turn . | . . . Machines Repaired . | . . . Machines Dismantled . | . . . Machines Sabotaged . | . . . Overloaded Fab Kills . | . . . Hacking | -11 -10 -10 --------- Run | Yrd Mat Min Machines Accessed . | . . . Terminals . | . . . Fabricators . | . . . Repair Stations . | . . . Recycling Units . | . . . Scanalyzers . | . . . Garrison Access . | . . . Total Hacks . | . . . Successful . | . . . Failed . | . . . Catastrophic . | . . . Database Lockouts . | . . . Manual . | . . . Terminals . | . . . Fabricators . | . . . Repair Stations . | . . . Recycling Units . | . . . Scanalyzers . | . . . Garrison Access . | . . . Terminal Hacks . | . . . Fabricator Hacks . | . . . Repair Station Hacks . | . . . Recycling Unit Hacks . | . . . Scanalyzer . | . . . Garrison Access Hacks . | . . . Unauthorized Hacks . | . . . Terminals . | . . . Fabricators . | . . . Repair Stations . | . . . Recycling Units . | . . . Scanalyzers . | . . . Garrison Access . | . . . Data Cores Recovered . | . . . Used . | . . . Hacking Detections . | . . . Full Trace Events . | . . . Feedback Events . | . . . Feedback Blocked . | . . . Robot Schematics Acquired . | . . . Robots Built . | . . . Authchips . | . . . Time . | . . . Total Robot Build Rating . | . . . Part Schematics Acquired . | . . . Parts Built . | . . . Authchips . | . . . Time . | . . . Total Part Build Rating . | . . . Parts Repaired . | . . . Time . | . . . Parts Recycled . | . . . Recycled Matter . | . . . Retrieved Matter . | . . . Retrieved Components . | . . . Parts Scanalyzed . | . . . Part Schematics Acquired . | . . . Parts Damaged . | . . . Bothacking | -11 -10 -10 ------------ Run | Yrd Mat Min Used RIF Installer . | . . . Robots Hacked . | . . . Non-combat . | . . . Combat . | . . . Robot Hacks Applied . | . . . Relay Couplers Released . | . . . Fabnet Peak Effective % . | . . . Robots Rewired . | . . . Allies Hacked . | . . . Hacks Repelled . | . . . Allies | -11 -10 -10 -------- Run | Yrd Mat Min Total Allies 2 | . . 2 Largest Group 2 | . . 2 Highest-Rated Group 45 | . . 45 Highest-Rated Ally 31 | . . 31 Total Orders . | . . . Ally Attacks 15 | . . 15 Total Damage 229 | . . 229 Kills 4 | . . 4 Allies Corrupted . | . . . Allies Melted . | . . . Intel | -11 -10 -10 ------- Run | Yrd Mat Min Robot Analysis Total . | . . . Derelict Logs Recovered 1 | . . 1 Drone Launches . | . . . Drone Recoveries . | . . . Exploration | -11 -10 -10 ------------- Run | Yrd Mat Min Turns Passed 1016 | 117 568 331 Spaces Moved 516 | 74 280 162 Core 35 | 35 . . Treads 237 | 39 198 . Legs 244 | . 82 162 Wheels . | . . . Hover . | . . . Flight . | . . . Fastest Speed 50 | 50 120 190 Average Speed 162 | 127 154 192 Slowest Speed 260 | 160 190 260 Overloaded Moves . | . . . Propulsion Burnouts . | . . . Robots Hopped . | . . . Cave-ins Triggered . | . . . Exploration Rate (%) 26 | 4 51 23 Regions Visited 2 Branch Regions 1 Pre-discovered Areas 1 | . . 1 Known Exits Taken . | . . . Unknown Exits Taken 2 | 1 1 . Scrap Searched 1 | . . 1 Spaces Dug . | . . . Terrain Destroyed . | . . . Melee . | . . . Projectile . | . . . AOE . | . . . Terrain Rammed . | . . . Walls Destroyed . | . . . Machines Disabled . | . . . Actions | -11 -10 -10 --------- Run | Yrd Mat Min Total 614 | 90 349 175 Wait 10 | . 10 . Move 514 | 73 279 162 Hop . | . . . Pick Up 19 | 7 11 1 Fast Attach . | . . . Attach 13 | 6 6 1 Detach 1 | . 1 . Swap 1 | . 1 . Drop 5 | . 2 3 Fire 42 | 4 37 1 Melee . | . . . Ram . | . . . Kick 7 | . . 7 Crush 2 | . 2 . Escape Stasis . | . . . Rewire . | . . . Trap . | . . . Miscellaneous . | . . . Route ------- -11/Scrapyard -10/Materials -10/Mines (discovered 1 exit: [*Exi]) History --------- Turn | Location | Event 2 | -11/Scrapyard | Discovered new exit (range 16) 118 | -11/Scrapyard | Entered Materials 312 | -10/Materials | Build established: Mutant 561 | -10/Materials | Core integrity fell below 50% 624 | -10/Materials | Discovered new exit (range 15) 686 | -10/Materials | Entered Mines 798 | -10/Mines | Deemed a non-threat by the Exiles lab entrance 800 | -10/Mines | Discovered new exit (range 5) 895 | -10/Mines | Learned location of Storage (-7) 970 | -10/Mines | Assembled infested the area 1013 | -10/Mines | Core integrity fell below 20% 1017 | -10/Mines | Destroyed by as-76352 with Assembled Maul Last Messages --------------- Acquired derelict log, extracted data. World map updated: -7/Storage. ALERT: Infestation in the mines, dispatching Demolisher response squad. as-74441 destroyed. HA-17T(g) destroyed. Aluminum Leg destroyed. System corrupted by crushing effect (+2). Knocked back. K-01 Serf system corrupted by crushing effect. K-01 Serf system terminally corrupted. as-52131 sneak attacks. U-05 Engineer system corrupted by crushing effect. Targeting Computer destroyed. System corrupted by crushing effect (+3). Knocked back. Dropped Aluminum Leg. Dropped Beam Cannon. Dropped Lrg. Storage Unit. Map ----- +----------------------------------------------------+ | | | | | | | | | | | | | ?????????????????????????????????????????????????? | | ?????????????????????????????????????????????????? | | ?????????????????????????????????????????????????? | | ?????????????????????????????????????????????????? | | ?????????????????????????????????????????????????? | | ????????????????????? ???????????????????????????? | | ???????????####????# ???????????????????????????? | | ???????????# <#????# ##???#?????????????????????? | | ??????????## ##????# ### ?????????????????????? | | ??????????# #?????# ?????????????????????? | | ?????????## ##?????? ?????????????????????? | | ?????????# ###????? #?????????????????????? | | ?????????## #?????? #?????????????????????? | | ??????????### #??????# ??????????????????????? | | ????????????# #??????# ??????????????????????? | | ????????????# #####??# ??????????????????????? | | ????????????# # #??# ??????????????????????? | | ??????????### #??# #??##################### | | ?????????## ##??# #??# *=! | | ?????????# ##???# ]@##?# =%! % | | ????????## #???## aa### ###############??? | | ????????# % #????##! ## #????????????????? | | ????????# %%##?????## ## #????????????????? | | ????????## ####!#???????# %# ##???????????????? | | ?????????###?###%#???????# #???????????????? | | ?????????????#%|%#???????# ##??????????????? | | ?????????????# #####?????## ##?????????????? | | ??????????#### ## ##?????### a #?????????????? | | ?????????## ##??????## #?????????????? | | ?????????# ##??????# #?????????????? | | ?????????# #?????## ##?????????????? | | ?????????## #???### ####??????????????? | | ??????????### ## #??## ##?????????????????? | | ????????????### ### %##??# #??????????????????? | | ??????????????# ####%#???## ##??????????????????? | | ??????????????# #????# #???????????????????? | | ??????????????###### #????# #???????????????????? | | ???????????????????# #????# #???????????????????? | | ??????# ###### ###### #???????????????????? | | ??????# #???????????????????? | | ???????# ###### #########???????????????????? | | ???????????????????# #???????????????????????????? | | ???????????????????# #???????????????????????????? | | ???????????????????# #???????????????????????????? | +----------------------------------------------------+ Best States ------------- Heat Dissipation 25 Energy Generation 10 Energy Capacity 250 Matter Stores 300 Matter Capacity 300 Sight Range 16 Terrain Scan Density 10 Evasion (%) 55 Targeting Accuracy 5 Recoil Reduction 2 Item Schematics ----------------- None Robot Schematics ------------------ None Fabricated ------------ Nothing Alien Tech Used ----------------- None Achievements -------------- None Challenges ------------ None Game ------ Seed FocalSpacefoldArray Manual? 0 Play Time 00:15:56 Cumulative 6.5 hours Start 2024.04.23 @ 17:15:43 End 2024.04.24 @ 00:10:01 Sessions 1 Manual Loads 0 Difficulty Rogue Special Mode None Game No. 17 Rogue 17 Adventurer 0 Explorer 0 Win Type - Total 0 Types 0/0/0/0/0/0/0/0/0 Lore% 4 Gallery% 8 Achievement% 8 Wizard Run 0 Options --------- Layout 1 ASCII 0 Keyboard 0 Movement Arrows Keybinds 0 Fullscreen 1 Font 24/Smallcaps Map View 50x40 Zoom Use 0% Tactical HUD 0 Map Filters NONE Filters NONE Steam 1 RUN: fa755473-cd2f-42e5-8b04-7363d352b9a6